bitfinex-derivatives/quotes_ETHF0:USTF0_20250430
["timestamp","ask_amount","ask_price","bid_price","bid_amount"]
[1746003841757,5.08040926,1798.2,1798.1,8.735]
[1746003841955,6.19234926,1798.2,1798.1,9.6122]
[1746003842159,6.19234926,1798.2,1798.1,7.014]
[1746003842355,1.11206,1798.1,1798.0,1.11203]
[1746003842552,4.01086926,1798.1,1798.0,1.11203]
[1746003843254,0.83526,1798.0,1797.9,6.34391]
[1746003843460,2.93168679,1798.0,1797.9,12.24591]
[1746003843660,2.93168679,1798.0,1797.9,12.28331]
[1746003843963,2.93168679,1798.0,1797.9,12.85711]
[1746003844164,6.75968679,1798.0,1797.9,12.85711]
[1746003844361,6.75968679,1798.0,1797.9,5.31171]
[1746003845058,6.31206,1798.0,1797.9,5.31171]
[1746003845265,6.7596851,1798.0,1797.9,5.31171]
[1746003846762,6.7596851,1798.0,1797.9,4.1996]
[1746003846964,6.7596851,1798.0,1797.9,5.31173]
[1746003847165,6.7596851,1798.0,1797.9,4.1996]
[1746003847460,11.7596851,1798.0,1797.9,4.1996]
[1746003848858,11.75918998,1798.0,1797.9,4.1996]
[1746003850667,20.97171906,1798.0,1797.9,4.1996]
[1746003850865,20.9713956,1798.0,1797.9,4.1996]
[1746003852771,20.97117381,1798.0,1797.9,4.1996]
[1746003854169,15.97117381,1798.0,1797.9,4.1996]
[1746003854469,6.75864473,1798.0,1797.9,4.1996]
[1746003854675,6.75841339,1798.0,1797.9,4.1996]
[1746003856068,10.92315339,1798.0,1797.3,2.78557]
[1746003856364,1.11262,1797.2,1797.1,1.11261]
[1746003856569,1.55897339,1797.2,1797.1,2.79901]
[1746003856770,1.55897339,1797.2,1797.1,8.70101]
[1746003857176,5.38697339,1797.2,1797.1,7.84842]
[1746003857472,5.38697339,1797.2,1797.1,8.3246]
[1746003857673,1.11262,1797.1,1797.0,11.76115469]
[1746003857973,1.55897339,1797.1,1797.0,13.34995469]
[1746003858174,1.55897339,1797.1,1797.0,8.60343]
[1746003860072,1.55897339,1797.1,1797.0,7.4908]
[1746003860476,1.55770216,1797.1,1797.0,7.4908]
[1746003860677,1.55770216,1797.1,1797.0,8.60348]
[1746003860877,1.55770216,1797.1,1797.0,7.4908]
[1746003861176,5.38570216,1797.1,1797.0,8.60348]
[1746003861378,4.27308216,1797.1,1797.0,8.60348]
[1746003861569,5.38570216,1797.1,1797.0,8.60348]
[1746003862176,1.55770216,1797.1,1797.0,8.60348]
[1746003862476,1.55724093,1797.1,1797.0,8.60348]
[1746003863872,1.11262,1797.1,1797.0,8.60348]
[1746003864175,1.55700813,1797.1,1797.0,7.4908]
[1746003864475,1.55700813,1797.1,1797.0,8.60348]
[1746003864867,1.55694171,1797.1,1797.0,7.4908]
[1746003865069,1.55694171,1797.1,1797.0,8.60348]
[1746003865367,5.38491791,1797.1,1797.0,8.60348]
[1746003865569,5.38491887,1797.1,1797.0,8.60348]
[1746003866381,4.94062,1797.1,1797.0,8.60348]
[1746003866779,5.38486648,1797.1,1797.0,8.60348]
[1746003866981,4.94062,1797.1,1797.0,8.60348]
[1746003867180,1.11262,1797.1,1797.0,8.60348]
[1746003868583,1.55691007,1797.1,1797.0,8.60348]
[1746003868781,1.11262,1797.1,1797.0,8.60348]
[1746003869770,1.55697097,1797.1,1797.0,8.60348]
[1746003869975,1.55697095,1797.1,1797.0,8.60348]
[1746003870177,1.11262,1797.1,1797.0,8.60348]
[1746003870382,7.90141,1797.2,1797.1,1.11262]
[1746003870578,7.90141,1797.2,1797.1,8.61892]
[1746003870780,4.32041,1797.2,1797.1,8.61892]
[1746003872582,4.76535464,1797.2,1797.1,1.6043]
[1746003873086,8.59335464,1797.2,1797.1,1.6043]
[1746003873378,10.34075464,1797.2,1797.1,1.6043]
[1746003873779,10.34091019,1797.2,1797.1,1.6043]
[1746003875594,10.34127756,1797.2,1797.1,1.6043]
[1746003881487,10.34201686,1797.2,1797.1,1.6043]
[1746003881787,8.59461686,1797.2,1797.1,1.6043]
[1746003882090,8.59461686,1797.2,1797.1,2.71692]
[1746003882289,4.76661686,1797.2,1797.1,2.71692]
[1746003883191,1.55909234,1797.2,1797.1,2.71692]
[1746003883895,1.55909234,1797.2,1797.1,8.61892]
[1746003884997,1.55909234,1797.2,1797.1,7.5063]
[1746003886695,1.55909234,1797.2,1797.1,8.61892]
[1746003886994,1.55909234,1797.2,1797.1,7.5063]
[1746003887595,1.55909234,1797.2,1797.1,8.61892]
[1746003887995,1.55909234,1797.2,1797.1,7.5063]
[1746003888694,1.55909234,1797.2,1797.1,8.61892]
[1746003888890,1.11261,1797.2,1797.1,8.61892]
[1746003889090,1.55993114,1797.2,1797.1,8.61892]
[1746003889484,0.44732114,1797.2,1797.1,10.92472]
[1746003889691,1.11245,1797.4,1797.3,1.1125]
[1746003889889,1.55977955,1797.4,1797.3,7.0145]
[1746003890298,1.55977955,1797.4,1797.3,8.7699]
[1746003890492,1.55977955,1797.4,1797.3,2.8679]
[1746003890694,1.5596978,1797.4,1797.3,2.8679]
[1746003891099,1.55969625,1797.4,1797.3,2.8679]
[1746003892899,1.55946485,1797.4,1797.3,2.8679]
[1746003893598,1.55946485,1797.4,1797.3,1.7554]
[1746003893896,1.1125,1797.3,1797.2,0.8063]
[1746003894197,1.11262,1797.1,1797.0,2.84018]
[1746003894399,1.55963485,1797.1,1797.0,2.84018]
[1746003894597,1.55963485,1797.1,1797.0,1.7275]
[1746003894799,1.55950494,1797.1,1797.0,1.7275]
[1746003895202,1.55950494,1797.1,1797.0,3.3422]
[1746003895203,5.38750494,1797.1,1797.0,3.3422]
[1746003895795,5.38750494,1797.1,1797.0,9.2442]
[1746003896403,5.38745648,1797.1,1797.0,10.35688]
[1746003896603,5.38745648,1797.1,1797.0,9.2442]
[1746003896896,4.27485396,1797.1,1797.0,9.2442]
[1746003897089,2.78063,1797.7,1797.2,2.7814]
[1746003897297,2.78063,1797.7,1797.3,0.8629]
[1746003897298,1.1125,1797.4,1797.3,0.8629]
[1746003897600,5.55278484,1797.4,1797.3,1.9754]
[1746003898103,5.55278484,1797.4,1797.3,7.8774]
[1746003899100,6.66522484,1797.4,1797.3,7.8774]
[1746003899704,5.55278484,1797.4,1797.3,7.8774]
[1746003900698,5.55278484,1797.4,1797.3,9.5153]
[1746003901504,0.8718,1797.5,1797.4,1.11244]
[1746003901696,0.8718,1797.5,1797.4,8.65234]
[1746003902101,4.6998,1797.5,1797.4,8.65234]
[1746003902305,3.828,1797.5,1797.4,8.65234]
[1746003903196,4.32013,1797.6,1797.5,1.11237]
[1746003903396,4.32013,1797.6,1797.5,8.72217]
[1746003903906,4.32013,1797.6,1797.5,2.82017]
[1746003904205,8.14813,1797.6,1797.5,2.82017]
[1746003907102,3.828,1797.6,1797.5,2.82017]
[1746003907303,1.95853,1797.8,1797.7,1.11225]
[1746003907506,5.55278484,1797.9,1797.8,1.11219]
[1746003907812,8.76058484,1797.9,1797.7,1.11221]
[1746003908108,1.11222,1797.8,1797.7,2.85871]
[1746003908508,15.33764484,1797.9,1797.8,1.11219]
[1746003908711,15.33764484,1797.9,1797.8,2.79229]
[1746003909012,15.75866802,1797.9,1797.8,2.79229]
[1746003910503,10.20588318,1797.9,1797.8,2.79229]
[1746003911411,4.24902318,1797.9,1797.8,2.79229]
[1746003911713,3.828,1797.9,1797.8,8.69429]
[1746003912115,9.19113484,1798.2,1798.0,1.11202]
[1746003912407,2.13868187,1798.1,1798.0,7.01402]
[1746003912612,2.13868187,1798.1,1798.0,8.63352]
[1746003913113,5.5459,1798.1,1798.0,8.63352]
[1746003913914,6.6579,1798.1,1798.0,1.6195]
[1746003914212,1.11213,1797.9,1797.8,7.11953]
[1746003914514,8.7537,1798.1,1797.9,1.11213]
[1746003914515,3.70209,1798.0,1797.9,1.11213]
[1746003915013,3.70206,1798.0,1797.9,7.01413]
[1746003915214,7.53006,1798.0,1797.9,8.61633]
[1746003915415,6.418,1798.0,1797.9,8.61633]
[1746003915611,7.53006,1798.0,1797.9,8.61633]
[1746003916517,3.828,1798.0,1797.9,8.61633]
[1746003917918,4.94006,1798.0,1797.9,8.61633]
[1746003919517,3.828,1798.0,1797.9,8.61633]
[1746003920222,6.78815,1798.1,1798.0,1.11206]
[1746003920428,6.78815,1798.1,1798.0,7.01406]
[1746003921130,10.61615,1798.1,1798.0,7.01406]
[1746003924923,1.11219,1797.9,1797.8,1.11215]
[1746003925230,4.94019,1797.9,1797.8,1.11215]
[1746003925535,7.44579,1797.9,1797.8,1.11215]
[1746003929626,7.44579,1797.9,1797.8,2.85635]
[1746003929826,7.44579,1797.9,1797.8,8.75835]
[1746003935037,1.11237,1797.6,1797.5,1.11236]
[1746003935336,1.11237,1797.6,1797.5,8.65467]
[1746003935636,3.51307,1797.6,1797.5,8.65467]
[1746003935935,1.11225,1797.7,1797.6,1.11231]
[1746003936136,1.11225,1797.7,1797.6,8.60361]
[1746003938142,1.11225,1797.7,1797.6,2.70161]
[1746003938335,2.78255,1797.7,1797.6,2.70161]
[1746003938842,1.11225,1797.7,1797.6,8.60361]
[1746003939133,4.94025,1797.7,1797.6,8.60361]
[1746003940643,4.94025,1797.7,1797.6,2.70161]
[1746003941240,3.828,1797.7,1797.6,8.60361]
[1746003941537,4.94025,1797.7,1797.6,8.60361]
[1746003941737,3.828,1797.7,1797.6,9.45341]
[1746003942130,5.55278484,1798.0,1797.9,1.11213]
[1746003942333,5.55278484,1798.0,1797.9,7.01413]
[1746003942744,5.55278484,1798.0,1797.9,7.01023454]
[1746003943038,5.55278484,1798.0,1797.9,7.86003454]
[1746003945337,4.3198,1798.1,1798.0,1.11206]
[1746003945537,4.3198,1798.1,1798.0,9.49496]
[1746003946143,8.1478,1798.1,1798.0,9.49496]
[1746003948149,4.3198,1798.1,1798.0,9.49496]
[1746003949152,8.1478,1798.1,1798.0,9.49496]
[1746003949549,4.94,1798.1,1798.0,9.49496]
[1746003951448,5.7575,1798.1,1798.0,9.49496]
[1746003959061,3.828,1798.1,1798.0,9.49496]
[1746003959355,5.95485,1798.2,1798.1,1.112]
[1746003959553,4.31975,1798.2,1798.1,8.6824]
[1746003959953,5.55278484,1798.3,1798.2,1.11194]
[1746003960157,5.55278484,1798.3,1798.2,9.52714]
[1746003960357,5.55278484,1798.3,1798.2,13.10214]
[1746003963854,11.12858908,1798.5,1798.4,1.11182]
[1746003963855,1.91606,1798.5,1798.4,1.11182]
[1746003964047,1.91606,1798.5,1798.4,7.01382]
[1746003964454,1.91606,1798.5,1798.4,8.72372]
[1746003965959,0.8451,1798.6,1798.5,1.11175]
[1746003966259,1.95679,1798.6,1798.5,8.72365]
[1746003966459,0.8451,1798.6,1798.5,2.82165]
[1746003967159,5.78479,1798.6,1798.5,2.82165]
[1746003967361,4.6731,1798.6,1798.5,2.82165]
[1746003967958,4.6731,1798.6,1798.5,8.72365]
[1746003968160,1.95679,1798.6,1798.5,8.72365]
[1746003968564,3.69709,1798.6,1798.5,8.72365]
[1746003970261,7.52509,1798.6,1798.5,8.72365]
[1746003971161,3.69709,1798.6,1798.5,8.72365]
[1746003972353,2.5854,1798.6,1798.5,8.72365]
[1746003973860,3.69709,1798.6,1798.5,8.72365]
[1746003976860,3.69709,1798.6,1798.5,5.902]
[1746003977062,1.11182,1798.4,1798.3,6.80227]
[1746003977458,1.96652,1798.4,1798.3,12.70427]
[1746003981268,1.96652,1798.4,1798.3,8.69537]
[1746003981762,6.84216,1798.4,1798.1,1.6322]
[1746003981966,1.112,1798.1,1798.0,2.78774]
[1746003982166,1.112,1798.1,1798.0,8.68974]
[1746003982360,3.6169,1798.1,1798.0,8.68974]
[1746003983563,0.8039,1798.3,1798.2,1.11194]
[1746003983765,1.91578,1798.3,1798.2,7.01394]
[1746003983969,1.91578,1798.3,1798.2,1.11194]
[1746003985066,0.8039,1798.3,1798.2,1.11194]
[1746003985273,1.91578,1798.3,1798.2,1.98394]
[1746003985461,1.91578,1798.3,1798.2,7.88594]
[1746003985661,0.8039,1798.3,1798.2,7.88594]
[1746003985862,1.91578,1798.3,1798.2,7.88594]
[1746003989077,0.8333,1798.4,1798.3,1.11188]
[1746003989277,0.8333,1798.4,1798.3,8.76538]
[1746003989679,1.94512,1798.4,1798.3,8.76538]
[1746003990475,0.8333,1798.4,1798.3,8.76538]
[1746003991382,3.6423,1798.5,1798.4,1.11182]
[1746003991582,3.6423,1798.5,1798.4,2.82212]
[1746003991773,3.6423,1798.5,1798.4,8.72412]
[1746003995084,7.4703,1798.5,1798.4,8.72412]
[1746003995482,5.7612,1798.5,1798.4,8.72412]
[1746003996279,1.9332,1798.5,1798.4,8.72412]
[1746003997388,1.9332,1798.5,1798.2,4.50491]
[1746003997389,2.77955,1798.4,1797.9,5.988]
[1746003997685,1.90942,1798.3,1798.2,1.11194]
[1746003998086,0.8214,1798.5,1798.2,8.4617]
[1746003998386,8.28351484,1798.5,1798.4,7.01382]
[1746003998582,9.98751484,1798.5,1798.4,7.01382]
[1746003998777,9.98751484,1798.5,1798.4,1.11182]
[1746003998978,7.46211484,1798.5,1798.4,7.01382]
[1746004001489,9.10011484,1798.5,1798.4,7.01382]
[1746004002595,3.54733,1798.5,1798.4,7.01382]
[1746004005993,1.11183,1798.5,1798.4,7.01382]
[1746004008894,1.11183,1798.5,1798.4,8.75472]
[1746004010097,10.69333484,1798.6,1798.5,1.11175]
[1746004010303,10.69333484,1798.6,1798.5,9.58835]
[1746004011298,12.38283484,1798.6,1798.5,9.58835]
[1746004012204,16.21083484,1798.6,1798.5,9.58835]
[1746004012506,10.65805,1798.6,1798.5,9.58835]
[1746004013001,10.65805,1798.6,1798.5,8.75465]
[1746004013696,10.65805,1798.6,1798.4,41.6308]
[1746004013697,1.11175,1798.5,1798.4,41.91178]
[1746004013897,2.82265,1798.5,1798.4,46.702]
[1746004014092,1.11182,1798.4,1798.3,1.6603]
[1746004014298,3.62842,1798.4,1798.3,8.67416]
[1746004014796,6.83622,1798.4,1798.3,1.11186]
[1746004015195,10.66422,1798.4,1798.3,1.11186]
[1746004016607,1.11194,1798.3,1798.2,1.11189]
[1746004016798,1.11194,1798.3,1798.2,2.72699]
[1746004016999,1.11194,1798.3,1798.2,8.62899]
[1746004018804,4.31965,1798.4,1798.3,1.11188]
[1746004019005,4.31965,1798.4,1798.3,8.63858]
[1746004020706,4.31962,1798.4,1798.3,8.63858]
[1746004022207,1.11182,1798.4,1798.3,8.63858]
[1746004024113,12.37178484,1798.5,1798.4,1.11182]
[1746004024313,7.54178484,1798.5,1798.4,9.51672]
[1746004025113,6.66458484,1798.5,1798.4,9.51672]
[1746004027114,8.26098484,1798.5,1798.4,8.64282]
[1746004028012,8.26098484,1798.5,1798.4,2.74082]
[1746004028615,8.26098484,1798.5,1798.4,8.64282]
[1746004029110,6.66458484,1798.5,1798.4,8.64282]
[1746004032219,10.49258484,1798.5,1798.4,8.64282]
[1746004032615,4.9398,1798.5,1798.4,8.64282]
[1746004034116,1.1118,1798.5,1798.4,8.64282]
[1746004035717,2.7192,1798.5,1798.4,8.64282]
[1746004035908,2.7192,1798.5,1798.4,7.531]
[1746004036109,2.7192,1798.5,1798.4,8.64282]
[1746004038319,1.1118,1798.5,1798.4,8.64282]
[1746004038522,11.53332484,1798.6,1798.5,1.11175]
[1746004038718,11.53332484,1798.6,1798.5,8.76685]
[1746004039017,11.53332484,1798.6,1798.5,2.86485]
[1746004039219,15.36132484,1798.6,1798.5,2.86485]
[1746004040335,17.21225312,1798.6,1798.5,2.86485]
[1746004041920,16.37225312,1798.6,1798.5,2.86485]
[1746004042121,12.54425312,1798.6,1798.5,8.76685]
[1746004043018,14.22005312,1798.6,1798.5,8.76685]
[1746004043922,14.22005312,1798.6,1798.5,7.6551]
[1746004044116,16.21797139,1798.6,1798.5,8.76685]
[1746004044923,16.21797139,1798.6,1798.5,2.86485]
[1746004045623,16.21797139,1798.6,1798.5,8.76685]
[1746004046123,12.38997139,1798.6,1798.5,8.76685]
[1746004046822,10.71417139,1798.6,1798.5,8.76685]
[1746004047120,14.54217139,1798.6,1798.5,8.76685]
[1746004048025,16.28237139,1798.6,1798.5,8.76685]
[1746004048926,16.28237139,1798.6,1798.5,7.6551]
[1746004049227,16.28237139,1798.6,1798.5,8.76685]
[1746004051325,13.07457139,1798.6,1798.5,8.76685]
[1746004055232,9.24657139,1798.6,1798.5,8.76685]
[1746004058133,13.07457139,1798.6,1798.5,8.76685]
[1746004058831,13.07457139,1798.6,1798.5,7.6551]
[1746004059037,13.07457139,1798.6,1798.5,8.76685]
[1746004059228,9.24657139,1798.6,1798.5,8.76685]
[1746004060137,13.07457139,1798.6,1798.5,8.76685]
[1746004060536,11.33437139,1798.6,1798.5,8.76685]
[1746004060738,11.33437139,1798.6,1798.5,9.63375]
[1746004061231,7.50637139,1798.6,1798.5,9.63375]
[1746004062136,11.33437139,1798.6,1798.5,9.63375]
[1746004063140,7.50637139,1798.6,1798.5,9.63375]
[1746004077055,7.50637139,1798.6,1798.5,7.6551]
[1746004077459,9.21067139,1798.6,1798.5,7.6551]
[1746004077654,9.21067139,1798.6,1798.5,8.76685]
[1746004077882,9.21067139,1798.6,1798.5,7.6551]
[1746004078187,13.03867139,1798.6,1798.5,7.6551]
[1746004078670,13.03867139,1798.6,1798.5,8.76685]
[1746004079177,13.03867139,1798.6,1798.5,7.6551]
[1746004079378,13.03867139,1798.6,1798.5,8.76685]
[1746004083558,11.33437139,1798.6,1798.5,8.76685]
[1746004084060,7.50637139,1798.6,1798.5,8.76685]
[1746004086763,1.93274,1798.6,1798.5,8.76685]
[1746004090663,12.57389312,1798.7,1798.6,1.11169]
[1746004090865,11.72319312,1798.7,1798.6,9.58529]
[1746004091065,7.40371312,1798.7,1798.6,10.42269]
[1746004093669,5.57628889,1798.7,1798.6,13.63049]
[1746004097773,1.11158,1798.8,1798.7,1.11163]
[1746004097973,1.11158,1798.8,1798.7,8.76313]
[1746004098476,1.95498,1798.8,1798.7,8.76313]
[1746004099772,5.16278,1798.8,1798.7,5.902]
[1746004100073,1.11163,1798.7,1798.6,1.11167]
[1746004100374,3.52413,1798.7,1798.6,7.01367]
[1746004100575,3.52413,1798.7,1798.6,1.11167]
[1746004102081,7.35213,1798.7,1798.6,1.11167]
[1746004104073,7.35213,1798.7,1798.6,2.85787]
[1746004104376,3.52413,1798.7,1798.6,2.85787]
[1746004105180,7.35213,1798.7,1798.6,2.85787]
[1746004106173,3.52413,1798.7,1798.6,2.85787]
[1746004108781,3.52413,1798.7,1798.6,8.75987]
[1746004109082,7.35213,1798.7,1798.6,8.75987]
[1746004110179,3.52413,1798.7,1798.6,8.75987]
[1746004110381,1.93763,1798.7,1798.6,8.75987]
[1746004110685,0.826,1798.7,1798.6,8.75987]
[1746004110982,7.53129889,1798.8,1798.7,1.11163]
[1746004111175,7.53129889,1798.8,1798.7,2.84793]
[1746004112382,9.21289889,1798.8,1798.7,2.84793]
[1746004113780,7.53129889,1798.8,1798.7,8.74993]
[1746004113980,1.95501,1798.8,1798.7,8.74993]
[1746004115280,1.95501,1798.8,1798.7,7.6383]
[1746004115481,1.95501,1798.8,1798.7,5.902]
[1746004115683,3.67021,1798.8,1798.7,1.11163]
[1746004115987,3.67021,1798.8,1798.5,4.40829]
[1746004115988,1.11163,1798.7,1798.6,2.74057]
[1746004116286,2.82683,1798.7,1798.6,2.74057]
[1746004117090,6.65483,1798.7,1798.6,2.74057]
[1746004119188,2.82683,1798.7,1798.6,2.74057]
[1746004121993,1.11163,1798.7,1798.6,2.74057]
[1746004122180,1.11163,1798.7,1798.6,3.56447]
[1746004122791,1.11163,1798.7,1798.6,9.46647]
[1746004123289,1.11159,1798.8,1798.7,1.11157]
[1746004123492,1.11159,1798.8,1798.7,8.65307]
[1746004123893,1.96739,1798.8,1798.7,8.65307]
[1746004125895,1.11159,1798.8,1798.7,8.65307]
[1746004128696,1.11159,1798.8,1798.7,2.75107]
[1746004133400,1.11163,1798.7,1798.6,1.93557]
[1746004133597,2.4406,1798.7,1798.6,1.7171]
[1746004133901,3.55223,1798.7,1798.6,8.73079]
[1746004135098,7.38023,1798.7,1798.6,8.73079]
[1746004136100,3.55223,1798.7,1798.6,8.73079]
[1746004140487,3.55223,1798.7,1798.6,9.60079]
[1746004140888,1.93593,1798.7,1798.6,9.60079]
[1746004141494,8.42790889,1798.8,1798.6,8.4891]
[1746004141690,8.42790889,1798.8,1798.7,8.73333]
[1746004141894,6.68790889,1798.8,1798.7,8.73333]
[1746004142496,6.68790889,1798.8,1798.6,1.11165]
[1746004142497,1.11163,1798.7,1798.6,1.11165]
[1746004142693,3.68523,1798.7,1798.6,5.902]
[1746004142894,3.68523,1798.7,1798.6,7.01369]
[1746004144700,4.10672364,1798.7,1798.6,7.81639]
[1746004144899,1.53312364,1798.7,1798.6,7.81639]
[1746004145596,2.36592364,1798.7,1798.6,7.81639]
[1746004145796,4.10302364,1798.7,1798.6,7.81639]
[1746004146303,3.68153,1798.7,1798.6,7.81639]
[1746004147604,4.10309138,1798.7,1798.6,7.81639]
[1746004149209,4.10309138,1798.7,1798.6,9.49789]
[1746004149705,1.53319138,1798.7,1798.6,9.49789]
[1746004151409,1.53321156,1798.7,1798.6,9.49789]
[1746004152911,0.42158156,1798.7,1798.6,9.49789]
[1746004153114,1.53321156,1798.7,1798.6,9.49789]
[1746004153311,1.53353411,1798.7,1798.6,9.49789]
[1746004154714,1.11163,1798.7,1798.6,9.49789]
[1746004155214,1.98283,1798.7,1798.6,9.49789]
[1746004155414,3.60113,1798.7,1798.6,7.5835]
[1746004155803,3.60113,1798.7,1798.6,5.902]
[1746004156009,4.02312097,1798.7,1798.6,5.902]
[1746004156205,7.85112097,1798.7,1798.6,5.902]
[1746004157219,7.85112578,1798.7,1798.6,5.902]
[1746004157719,7.85112578,1798.7,1798.6,7.01369]
[1746004158219,7.85112578,1798.7,1798.6,5.902]
[1746004159119,7.85117083,1798.7,1798.6,5.902]
[1746004159513,7.85117083,1798.7,1798.6,7.01369]
[1746004160721,7.42913,1798.7,1798.6,7.01369]
[1746004161018,13.00541889,1798.7,1798.6,7.01369]
[1746004161220,13.00541889,1798.7,1798.6,5.902]
[1746004161620,13.4274806,1798.7,1798.6,7.01369]
[1746004162417,13.4274806,1798.7,1798.6,1.11169]
[1746004162725,1.11169,1798.6,1798.5,1.6614]
[1746004162918,1.11175,1798.5,1798.4,4.0661]
[1746004163118,1.11182,1798.4,1798.3,7.44072469]
[1746004163419,3.14358155,1798.4,1798.3,7.44072469]
[1746004164024,3.14358155,1798.4,1798.3,8.55260469]
[1746004164224,3.14358155,1798.4,1798.3,10.20670469]
[1746004164732,3.14358155,1798.4,1798.3,9.09482469]
[1746004164927,3.14284387,1798.4,1798.3,9.09482469]
[1746004165126,3.14284387,1798.4,1798.3,1.6541]
[1746004167925,1.11194,1798.2,1798.1,8.55267469]
[1746004168130,1.53326387,1798.2,1798.1,10.30627469]
[1746004168432,1.53326387,1798.2,1798.1,8.76755]
[1746004174046,1.11194,1798.2,1798.1,8.76755]
[1746004177949,1.91722,1798.3,1798.2,1.11194]
[1746004178147,2.33791542,1798.3,1798.2,9.53594]
[1746004178449,2.33791542,1798.3,1798.2,3.63394]
[1746004179346,4.00131542,1798.3,1798.2,3.63394]
[1746004179746,4.00131542,1798.3,1798.2,2.522]
[1746004180041,4.00131542,1798.3,1798.2,1.6495]
[1746004180447,4.00142008,1798.3,1798.2,2.76144]
[1746004183351,2.33802008,1798.3,1798.2,2.76144]
[1746004183547,2.33802008,1798.3,1798.2,3.63084]
[1746004183749,2.33802008,1798.3,1798.2,4.50174]
[1746004184155,2.33815422,1798.3,1798.2,4.50174]
[1746004186757,2.33815422,1798.3,1798.2,10.40374]
[1746004187456,0.42093422,1798.3,1798.2,10.40374]
[1746004189755,1.53281422,1798.3,1798.2,10.40374]
[1746004191961,1.53360341,1798.3,1798.2,10.40374]
[1746004192559,0.42172341,1798.3,1798.2,10.40374]
[1746004197961,11.31678889,1798.6,1798.5,1.11175]
[1746004198168,9.64998889,1798.6,1798.5,7.01375]
[1746004198361,9.64998889,1798.6,1798.5,3.65075]
[1746004198966,10.76167889,1798.6,1798.5,3.65075]
[1746004199269,5.18539,1798.6,1798.5,3.65075]
[1746004200363,1.97759,1798.6,1798.5,3.65075]
[1746004201769,1.97759,1798.6,1798.5,9.55275]
[1746004202565,3.65599,1798.6,1798.5,9.55275]
[1746004203769,3.65599,1798.6,1798.5,7.01375]
[1746004206777,3.65599,1798.6,1798.5,8.62735]
[1746004210776,3.65599,1798.6,1798.5,7.01375]
[1746004212778,1.11175,1798.5,1798.4,1.745]
[1746004213075,5.95735,1798.5,1798.4,7.647]
[1746004213276,5.95735,1798.5,1798.4,7.01382]
[1746004213477,5.95735,1798.5,1798.1,2.77999]
[1746004213676,3.2078,1797.8,1797.6,23.4864528]
[1746004213874,6.35375,1797.7,1797.6,21.57980773]
[1746004214172,10.2785371,1797.7,1797.6,1.13338602]
[1746004214376,10.2785371,1797.7,1797.2,26.04253642]
[1746004214377,1.11244,1797.4,1797.2,26.04253642]
[1746004214579,8.29498062,1797.4,1797.2,26.04253642]
[1746004214978,7.87824,1797.4,1797.2,26.04253642]
[1746004215170,11.70624,1797.4,1797.2,26.04253642]
[1746004215776,12.14921588,1797.4,1797.2,26.04253642]
[1746004217085,12.14864826,1797.4,1797.2,26.04253642]
[1746004217580,12.56816467,1797.4,1797.2,26.04253642]
[1746004218481,1.11268,1797.0,1796.9,1.11274]
[1746004218670,4.32048,1797.0,1796.9,1.11274]
[1746004219481,3.2078,1797.0,1796.9,1.11274]
[1746004220085,3.2078,1797.0,1796.9,4.94074]
[1746004220593,4.32048,1797.0,1796.9,4.94074]
[1746004220984,3.2078,1797.0,1796.9,4.94074]
[1746004221490,3.2078,1797.0,1796.9,9.94074]
[1746004222593,7.87829,1797.4,1797.0,1.11268]
[1746004222794,7.87829,1797.4,1797.3,1.1125]
[1746004222986,6.7658,1797.4,1797.3,1.1125]
[1746004223293,4.80276682,1797.5,1797.4,1.11244]
[1746004223488,3.69039682,1797.5,1797.4,2.85044]
[1746004223988,4.80276682,1797.5,1797.4,2.85044]
[1746004225093,4.80276682,1797.5,1797.4,6.67844]
[1746004225287,3.69039682,1797.5,1797.4,11.67844]
[1746004225893,4.80276682,1797.5,1797.4,11.67844]
[1746004226196,1.11237,1797.5,1797.4,7.85044]
[1746004226695,1.11237,1797.5,1797.4,2.85044]
[1746004226887,4.32016,1797.6,1797.5,1.11237]
[1746004227088,4.32016,1797.6,1797.5,3.66387]
[1746004228488,3.2078,1797.6,1797.5,3.66387]
[1746004229397,4.32011,1797.6,1797.5,3.66387]
[1746004229596,3.2078,1797.6,1797.5,3.66387]
[1746004230089,3.2078,1797.6,1797.5,7.49187]
[1746004232692,4.67116,1797.9,1797.8,1.11219]
[1746004232693,7.87896,1797.9,1797.8,1.11219]
[1746004232893,4.31996,1797.9,1797.8,1.11219]
[1746004233399,3.2078,1797.9,1797.8,1.11219]
[1746004233898,4.3198,1798.1,1798.0,1.11206]
[1746004234693,4.3198,1798.1,1798.0,2.73306]
[1746004242293,4.76243806,1798.1,1798.0,2.73306]
[1746004242697,4.76243806,1798.1,1797.9,0.7938]
[1746004242698,6.43050806,1798.1,1797.7,2.78061]
[1746004242893,1.1121,1798.0,1797.9,1.11206]
[1746004243097,1.1121,1798.0,1797.9,2.82456]
[1746004243895,1.55491485,1798.0,1797.9,2.82456]
[1746004244399,1.1121,1798.0,1797.9,2.82456]
[1746004245403,3.2078,1798.1,1798.0,1.11206]
[1746004245597,3.2078,1798.1,1798.0,3.63626]
[1746004246105,3.2078,1798.1,1798.0,7.46426]
[1746004247204,3.2078,1798.1,1798.0,3.63626]
[1746004250306,3.65143469,1798.1,1798.0,3.63626]
[1746004250515,3.65143218,1798.1,1798.0,2.82456]
[1746004250714,6.15703218,1798.1,1797.8,2.78033]
[1746004250911,2.11155952,1798.0,1797.9,1.11206]
[1746004251607,2.11155952,1798.0,1797.9,2.80886]
[1746004251814,3.22366952,1798.0,1797.9,2.80886]
[1746004252113,3.22396054,1798.0,1797.9,2.80886]
[1746004252509,1.11229,1797.7,1797.6,1.11225]
[1746004252814,4.32004,1797.8,1797.7,1.11225]
[1746004253108,7.28912109,1797.8,1797.7,1.11225]
[1746004254115,7.28925566,1797.8,1797.7,1.11225]